lending/lending_fUSD_20250218
["ID","MTS","AMOUNT","RATE_DAILY","PERIOD"]
[353487458,1739877107731,-548.61410472,0.00014767,2]
[353487459,1739877107740,-508.81582952,0.00014767,2]
[353487460,1739877107749,-774.47,0.00014767,2]
[353487461,1739877107759,-500.0,0.00014767,2]
[353487462,1739877107768,-500.0,0.00014767,2]
[353487463,1739877107777,-743.0,0.00014767,2]
[353487464,1739877107786,-508.4101634,0.00014767,2]
[353487465,1739877107795,-500.0,0.00014767,2]
[353487466,1739877107804,-558.02,0.00014767,2]
[353487467,1739877107813,-500.0,0.00014767,2]
[353487468,1739877107822,-500.0,0.00014767,2]
[353487469,1739877107831,-500.0,0.00014767,2]
[353487470,1739877107840,-527.89003146,0.00014767,2]
[353487471,1739877107849,-584.12,0.00014767,2]
[353487472,1739877107860,-500.0,0.00014767,2]
[353487473,1739877107869,-265.63783919,0.00014767,2]
[353487474,1739877107879,-513.65010892,0.00014767,2]
[353487475,1739877107888,-500.0,0.00014767,2]
[353487476,1739877107898,-381.55202471,0.00014767,2]
[353487477,1739877107907,-257.03136756,0.00014767,2]
[353487478,1739877107917,-500.0,0.00014767,2]
[353487479,1739877107926,-500.0,0.00014767,2]
[353487480,1739877107936,-518.08060826,0.00014767,2]
[353487481,1739877107945,-551.16,0.00014767,2]
[353487482,1739877107955,-500.0,0.00014767,2]
[353487483,1739877107964,-500.0,0.00014767,2]
[353487484,1739877107974,-588.92,0.00014767,2]
[353487485,1739877107983,-500.0,0.00014767,2]
[353487486,1739877107993,-500.0,0.00014767,2]
[353487487,1739877108002,-500.0,0.00014767,2]
[353487488,1739877108012,-432.79402095,0.00014767,2]
[353487489,1739877108022,-516.70336338,0.00014767,2]
[353487490,1739877108032,-229.65391477,0.00014767,2]
[353487491,1739877108042,-500.0,0.00014767,2]
[353487492,1739877108052,-500.0,0.00014767,2]
[353487493,1739877108061,-505.18157377,0.00014767,2]
[353487494,1739877108071,-515.19191197,0.00014767,2]
[353487495,1739877108080,-500.0,0.00014767,2]
[353487496,1739877108091,-500.0,0.00014767,2]
[353487497,1739877108103,-500.0,0.00014767,2]
[353487498,1739877108113,-500.0,0.00014767,2]
[353487499,1739877108123,-217.45705306,0.00014767,2]
[353487500,1739877108132,-500.0,0.00014767,2]
[353487501,1739877108142,-511.18029424,0.00014767,2]
[353487502,1739877108152,-1082.84,0.00014767,2]
[353487503,1739877108162,-752.03,0.00014767,2]
[353487504,1739877108171,-560.19,0.00014767,2]
[353487505,1739877108181,-801.32,0.00014767,2]
[353487506,1739877108190,-529.67488645,0.00014767,2]
[353487507,1739877108200,-818.96,0.00014767,2]
[353487508,1739877108209,-590.96469912,0.00014767,2]
[353487509,1739877108220,-500.0,0.00014767,2]
[353487510,1739877108230,-1481.48,0.00014767,2]
[353487511,1739877108239,-581.87,0.00014767,2]
[353487512,1739877108248,-544.7544094,0.00014767,2]
[353487513,1739877108258,-500.0,0.00014767,2]
[353487514,1739877108268,-500.0,0.00014767,2]
[353487515,1739877108278,-500.0,0.00014767,2]
[353487516,1739877108287,-628.6,0.00014767,2]
[353487517,1739877108297,-500.0,0.00014767,2]
[353487518,1739877108307,-500.0,0.00014767,2]
[353487519,1739877108316,-654.96,0.00014767,2]
[353487520,1739877108325,-1477.37,0.00014767,2]
[353487521,1739877108334,-504.25,0.00014767,2]
[353487522,1739877108344,-782.84,0.00014767,2]
[353487523,1739877108354,-924.18,0.00014767,2]
[353487524,1739877108364,-500.0,0.00014767,2]
[353487525,1739877108373,-935.92,0.00014767,2]
[353487526,1739877108383,-799.81,0.00014767,2]
[353487527,1739877108392,-1116.02,0.00014767,2]
[353487528,1739877108402,-519.61,0.00014767,2]
[353487529,1739877108412,-681.29,0.00014767,2]
[353487530,1739877108421,-2075.21,0.00014767,2]
[353487531,1739877108431,-515.30547525,0.00014767,2]
[353487532,1739877108441,-719.93,0.00014767,2]
[353487533,1739877108450,-500.0,0.00014767,2]
[353487534,1739877108460,-500.0,0.00014767,2]
[353487535,1739877108468,-728.25,0.00014767,2]
[353487536,1739877108478,-1047.12,0.00014767,2]
[353487537,1739877108488,-508.93192958,0.00014767,2]
[353487538,1739877108498,-814.73,0.00014767,2]
[353487539,1739877108508,-500.0,0.00014767,2]
[353487540,1739877108522,-500.0,0.00014767,2]
[353487541,1739877108532,-500.0,0.00014767,2]
[353487542,1739877108541,-1505.62,0.00014767,2]
[353487543,1739877108551,-670.36,0.00014767,2]
[353487544,1739877108561,-500.0,0.00014767,2]
[353487545,1739877108570,-500.0,0.00014767,2]
[353487546,1739877108580,-520.18,0.00014767,2]
[353487547,1739877108590,-500.0,0.00014767,2]
[353487548,1739877108600,-1067.02,0.00014767,2]
[353487549,1739877108609,-2188.24,0.00014767,2]
[353487550,1739877108750,-500.0,0.00014767,2]
[353487551,1739877108759,-500.0,0.00014767,2]
[353487552,1739877108769,-500.0,0.00014767,2]
[353487553,1739877108778,-898.16,0.00014767,2]
[353487554,1739877108787,-602.92,0.00014767,2]
[353487555,1739877108797,-500.0,0.00014767,2]
[353487556,1739877108806,-1048.16,0.00014767,2]
[353487557,1739877108816,-500.0,0.00014767,2]
[353487558,1739877108825,-500.0,0.00014767,2]
[353487559,1739877108835,-621.95,0.00014767,2]
[353487560,1739877108844,-1487.86,0.00014767,2]
[353487561,1739877108853,-550.92,0.00014767,2]
[353487562,1739877108862,-500.0,0.00014767,2]
[353487563,1739877108872,-1097.77,0.00014767,2]
[353487564,1739877108882,-666.53,0.00014767,2]
[353487565,1739877108891,-686.57,0.00014767,2]
[353487566,1739877108901,-1429.19,0.00014767,2]
[353487567,1739877108911,-500.0,0.00014767,2]
[353487568,1739877108921,-795.84,0.00014767,2]
[353487569,1739877108931,-548.63,0.00014767,2]
[353487570,1739877108940,-2430.58,0.00014767,2]
[353487571,1739877108950,-500.0,0.00014767,2]
[353487572,1739877108959,-500.0,0.00014767,2]
[353487573,1739877108969,-500.0,0.00014767,2]
[353487574,1739877108978,-201.53609688,0.00014767,2]
[353487575,1739877108988,-514.77877346,0.00014767,2]
[353487576,1739877108999,-500.0,0.00014767,2]
[353487577,1739877109009,-518.93,0.00014767,2]
[353487578,1739877109019,-705.88,0.00014767,2]
[353487579,1739877109029,-557.81,0.00014767,2]
[353487580,1739877109039,-455.39863034,0.00014767,2]
[353487581,1739877109048,-1474.07,0.00014767,2]
[353487582,1739877109058,-776.58,0.00014767,2]
[353487583,1739877109069,-544.55,0.00014767,2]
[353487584,1739877109080,-748.3,0.00014767,2]
[353487585,1739877109090,-500.0,0.00014767,2]
[353487586,1739877109100,-522.76,0.00014767,2]
[353487587,1739877109109,-578.59,0.00014767,2]
[353487588,1739877109119,-500.0,0.00014767,2]
[353487589,1739877109129,-500.0,0.00014767,2]
[353487590,1739877109139,-510.30240211,0.00014767,2]
[353487591,1739877109149,-544.15574596,0.00014767,2]
[353487592,1739877109159,-500.0,0.00014767,2]
[353487593,1739877109169,-1436.02,0.00014767,2]
[353487594,1739877109179,-982.49,0.00014767,2]
[353487595,1739877109189,-606.5,0.00014767,2]
[353487596,1739877109199,-500.0,0.00014767,2]
[353487597,1739877109208,-709.89,0.00014767,2]
[353487598,1739877109217,-500.0,0.00014767,2]
[353487599,1739877109227,-500.0,0.00014767,2]
[353487600,1739877109236,-787.7,0.00014767,2]
[353487601,1739877109246,-511.01940788,0.00014767,2]
[353487602,1739877109255,-655.98,0.00014767,2]
[353487603,1739877109264,-500.0,0.00014767,2]
[353487604,1739877109273,-500.0,0.00014767,2]
[353487605,1739877109283,-656.46,0.00014767,2]
[353487606,1739877109292,-900.9,0.00014767,2]
[353487607,1739877109302,-779.15,0.00014767,2]
[353487608,1739877109311,-500.0,0.00014767,2]
[353487609,1739877109320,-1866.05,0.00014767,2]
[353487610,1739877109331,-611.15,0.00014767,2]
[353487611,1739877109340,-1442.06,0.00014767,2]
[353487612,1739877109349,-509.82559586,0.00014767,2]
[353487613,1739877109359,-847.82,0.00014767,2]
[353487614,1739877109368,-500.0,0.00014767,2]
[353487615,1739877109377,-573.28,0.00014767,2]
[353487616,1739877109387,-958.33,0.00014767,2]
[353487617,1739877109398,-500.0,0.00014767,2]
[353487618,1739877109408,-500.0,0.00014767,2]
[353487619,1739877109418,-647.61,0.00014767,2]
[353487620,1739877109427,-500.0,0.00014767,2]
[353487621,1739877109436,-500.0,0.00014767,2]
[353487622,1739877109446,-401.91073258,0.00014767,2]
[353487623,1739877109455,-509.17,0.00014767,2]
[353487624,1739877109463,-500.0,0.00014767,2]
[353487625,1739877109472,-500.0,0.00014767,2]
[353487626,1739877109482,-523.64,0.00014767,2]
[353487627,1739877109491,-500.0,0.00014767,2]
[353487628,1739877109500,-879.84,0.00014767,2]
[353487629,1739877109509,-500.0,0.00014767,2]
[353487630,1739877109521,-885.19,0.00014767,2]
[353487631,1739877109531,-509.41696137,0.00014767,2]
[353487632,1739877109540,-618.92,0.00014767,2]
[353487633,1739877109550,-933.15,0.00014767,2]
[353487634,1739877109559,-528.69,0.00014767,2]
[353487635,1739877109567,-500.0,0.00014767,2]
[353487636,1739877109576,-758.55,0.00014767,2]
[353487637,1739877109586,-500.0,0.00014767,2]
[353487638,1739877109595,-500.0,0.00014767,2]
[353487639,1739877109604,-944.9,0.00014767,2]
[353487640,1739877109614,-150.0,0.0001478,2]
[353487641,1739877109623,-376.02,0.000148,31]
[353487642,1739877109633,-376.02,0.000148,31]
[353487643,1739877109642,-376.02,0.000148,31]
[353487644,1739877109651,-376.02,0.000148,31]
[353487645,1739877109660,-376.02,0.000148,31]
[353487646,1739877109669,-376.02,0.000148,31]
[353487647,1739877109683,-376.02,0.000148,31]
[353487648,1739877109700,-376.02,0.000148,31]
[353487649,1739877109717,-376.02,0.000148,31]
[353487650,1739877109736,-376.02,0.000148,31]
[353487651,1739877109749,-376.02,0.000148,31]
[353487652,1739877109768,-376.02,0.000148,31]
[353487653,1739877109786,-376.02,0.000148,31]
[353487654,1739877109803,-376.02,0.000148,31]
[353487655,1739877109821,-376.02,0.000148,31]
[353487656,1739877109838,-376.02,0.000148,31]
[353487657,1739877109856,-150.0,0.0001481,2]
[353487658,1739877109870,-500.0,0.0001484,2]
[353487659,1739877109889,-500.0,0.00014849,2]
[353487660,1739877109901,-500.0,0.00014849,2]
[353487661,1739877109918,-500.0,0.00014849,2]
[353487662,1739877109931,-739.5,0.00014849,2]
[353487663,1739877109946,-500.0,0.00014849,2]
[353487664,1739877109961,-500.0,0.00014849,7]
[353487665,1739877109977,-500.0,0.00014849,2]
[353487666,1739877109991,-238.62389014,0.00014849,2]
[353487667,1739877110006,-500.0,0.00014849,2]
[353487668,1739877110021,-511.76268825,0.00014849,2]
[353487669,1739877110037,-563.527832,0.00014849,2]
[353487670,1739877110052,-500.0,0.00014849,2]
[353487671,1739877110067,-500.0,0.00014849,2]
[353487672,1739877110083,-500.0,0.00014849,2]
[353487673,1739877110097,-505.81730849,0.00014849,2]
[353487674,1739877110111,-500.0,0.00014849,2]
[353487675,1739877110126,-500.0,0.00014849,2]
[353487676,1739877110140,-510.13492987,0.00014849,2]
[353487677,1739877110155,-517.48663208,0.00014849,2]
[353487678,1739877110170,-488.045061,0.00014849,2]
[353487679,1739877110185,-500.0,0.00014849,2]
[353487680,1739877110201,-500.0,0.00014849,2]
[353487681,1739877110216,-530.21986872,0.00014849,2]
[353487682,1739877110231,-523.28761311,0.00014849,2]
[353487683,1739877110247,-500.0,0.00014849,2]
[353487684,1739877110263,-500.0,0.00014849,2]
[353487685,1739877110278,-500.0,0.00014849,2]
[353487686,1739877110294,-586.25,0.00014849,2]
[353487687,1739877110308,-500.0,0.00014849,2]
[353487688,1739877110318,-500.0,0.00014849,2]
[353487689,1739877110327,-500.0,0.00014849,2]
[353487690,1739877110336,-503.11660422,0.00014849,2]
[353487691,1739877110346,-500.0,0.00014849,2]
[353487692,1739877110360,-500.0,0.00014849,2]
[353487693,1739877110369,-208.31092728,0.00014849,2]
[353487694,1739877110379,-500.0,0.00014849,2]
[353487695,1739877110389,-556.65414755,0.00014849,2]
[353487696,1739877110399,-500.0,0.00014849,2]
[353487697,1739877110408,-500.0,0.00014849,2]
[353487698,1739877110418,-515.22248107,0.00014849,2]
[353487699,1739877110428,-558.90637973,0.00014849,2]
[353487700,1739877110438,-209.49650529,0.00014849,2]
[353487701,1739877110448,-566.01582102,0.00014849,2]
[353487702,1739877110458,-962.99,0.00014849,2]
[353487703,1739877110468,-500.0,0.00014849,2]
[353487704,1739877110478,-500.0,0.00014849,2]
[353487705,1739877110487,-435.45127698,0.00014849,2]
[353487706,1739877110498,-500.73,0.00014849,2]
[353487707,1739877110507,-538.65,0.00014849,2]
[353487708,1739877110519,-500.0,0.00014849,2]
[353487709,1739877110530,-774.47,0.00014849,2]
[353487710,1739877110540,-500.0,0.00014849,2]
[353487711,1739877110549,-500.0,0.00014849,2]
[353487712,1739877110559,-743.0,0.00014849,2]
[353487713,1739877110569,-500.0,0.00014849,2]
[353487714,1739877110579,-558.02,0.00014849,2]
[353487715,1739877110589,-500.0,0.00014849,2]
[353487716,1739877110599,-502.45610572,0.00014849,2]
[353487717,1739877110609,-500.0,0.00014849,2]
[353487718,1739877110619,-584.12,0.00014849,2]
[353487719,1739877110628,-500.0,0.00014849,2]
[353487720,1739877110639,-500.0,0.00014849,2]
[353487721,1739877110649,-500.0,0.00014849,2]
[353487722,1739877110659,-500.0,0.00014849,2]
[353487723,1739877110669,-551.16,0.00014849,2]
[353487724,1739877110678,-481.19673042,0.00014849,2]
[353487725,1739877110688,-500.0,0.00014849,2]
[353487726,1739877110698,-588.92,0.00014849,2]
[353487727,1739877110708,-525.83597095,0.00014849,2]
[353487728,1739877110718,-512.44604133,0.00014849,2]
[353487729,1739877110727,-500.0,0.00014849,2]
[353487730,1739877110737,-500.0,0.00014849,2]
[353487731,1739877110747,-535.03390881,0.00014849,2]
[353487732,1739877110757,-500.0,0.00014849,2]
[353487733,1739877110767,-500.0,0.00014849,2]
[353487734,1739877110777,-500.0,0.00014849,2]
[353487735,1739877110787,-261.94697469,0.00014849,2]
[353487736,1739877110796,-500.0,0.00014849,2]
[353487737,1739877110806,-1082.84,0.00014849,2]
[353487738,1739877110816,-752.03,0.00014849,2]
[353487739,1739877110826,-560.19,0.00014849,2]
[353487740,1739877110835,-801.32,0.00014849,2]
[353487741,1739877110845,-818.96,0.00014849,2]
[353487742,1739877110855,-488.04425712,0.00014849,2]
[353487743,1739877111358,-1481.48,0.00014849,2]
[353487744,1739877111376,-581.87,0.00014849,2]
[353487745,1739877111393,-500.0,0.00014849,2]
[353487746,1739877111407,-500.0,0.00014849,2]
[353487747,1739877111418,-500.0,0.00014849,2]
[353487748,1739877111427,-628.6,0.00014849,2]
[353487749,1739877111437,-500.0,0.00014849,2]
[353487750,1739877111447,-500.0,0.00014849,2]
[353487751,1739877111456,-654.96,0.00014849,2]
[353487752,1739877111466,-1477.37,0.00014849,2]
[353487753,1739877111476,-504.25,0.00014849,2]
[353487754,1739877111486,-782.84,0.00014849,2]
[353487755,1739877111497,-924.18,0.00014849,2]
[353487756,1739877111507,-500.0,0.00014849,2]
[353487757,1739877111522,-935.92,0.00014849,2]
[353487758,1739877111532,-799.81,0.00014849,2]
[353487759,1739877111541,-1116.02,0.00014849,2]
[353487760,1739877111551,-519.61,0.00014849,2]
[353487761,1739877111561,-681.29,0.00014849,2]
[353487762,1739877111571,-2075.21,0.00014849,2]
[353487763,1739877111581,-719.93,0.00014849,2]
[353487764,1739877111591,-614.51205755,0.00014849,2]
[353487765,1739877111602,-500.0,0.00014849,2]
[353487766,1739877111611,-728.25,0.00014849,2]
[353487767,1739877111621,-1047.12,0.00014849,2]
[353487768,1739877111630,-814.73,0.00014849,2]
[353487769,1739877111639,-500.0,0.00014849,2]
[353487770,1739877111648,-338.57800435,0.00014849,2]
[353487771,1739877111658,-304.17165262,0.00014849,2]
[353487772,1739877111668,-1505.62,0.00014849,2]
[353487773,1739877111677,-670.36,0.00014849,2]
[353487774,1739877111687,-500.0,0.00014849,2]
[353487775,1739877111696,-500.0,0.00014849,2]
[353487776,1739877111706,-520.18,0.00014849,2]
[353487777,1739877111715,-500.0,0.00014849,2]
[353487778,1739877111725,-1067.02,0.00014849,2]
[353487779,1739877111735,-2188.24,0.00014849,2]
[353487780,1739877111745,-500.0,0.00014849,2]
[353487781,1739877111755,-500.0,0.00014849,2]
[353487782,1739877111764,-500.0,0.00014849,2]
[353487783,1739877111774,-898.16,0.00014849,2]
[353487784,1739877111784,-602.92,0.00014849,2]
[353487785,1739877111793,-500.0,0.00014849,2]
[353487786,1739877111803,-1048.16,0.00014849,2]
[353487787,1739877111813,-500.0,0.00014849,2]
[353487788,1739877111823,-500.0,0.00014849,2]
[353487789,1739877111832,-621.95,0.00014849,2]
[353487790,1739877111842,-1487.86,0.00014849,2]
[353487791,1739877111851,-500.0,0.00014849,2]
[353487792,1739877111860,-358.67644386,0.00014849,2]
[353487793,1739877112026,-739.09355614,0.00014849,2]
[353487794,1739877112036,-666.53,0.00014849,2]
[353487795,1739877112045,-686.57,0.00014849,2]
[353487796,1739877112054,-1429.19,0.00014849,2]
[353487797,1739877112064,-500.0,0.00014849,2]
[353487798,1739877112074,-795.84,0.00014849,2]
[353487799,1739877112083,-160.58765116,0.00014849,2]
[353487800,1739877112094,-388.04234884,0.00014849,2]
[353487801,1739877112103,-2430.58,0.00014849,2]
[353487802,1739877112113,-511.24524956,0.00014849,2]
[353487803,1739877112123,-500.0,0.00014849,2]
[353487804,1739877112133,-557.00691413,0.00014849,2]
[353487805,1739877112144,-500.0,0.00014849,2]
[353487806,1739877112154,-503.12548746,0.00014849,2]
[353487807,1739877112167,-15.80451254,0.00014849,2]
[353487808,1739877112176,-476.37548746,0.00014849,2]
[353487809,1739877432824,450.25,8.767e-05,2]
[353487838,1739878232009,-262.3965692,8.9e-05,2]
[353487840,1739878232021,-998.89381817,8.9e-05,2]
[353487841,1739878232219,-400.0,8.9e-05,2]
[353487842,1739878232231,-546.21121234,8.9e-05,2]
[353487843,1739878232240,-447.17874876,9e-05,2]
[353487844,1739878232250,-294.51208672,9.999e-05,2]
[353487845,1739878232259,-12604.53683812,0.0001,2]
[353487846,1739878232270,-3715.57995216,0.0001,2]
[353487847,1739878232280,-586.2,0.0001,2]
[353487848,1739878232295,-2605.21471463,0.0001,2]
[353487849,1739878232381,-378.65149525,0.0001,2]
[353487850,1739878232392,-291.5349804,0.0001,2]
[353488405,1739878238035,-1002.04485029,0.0001,2]
[353488611,1739878240098,-19886.67596401,0.0001,2]
[353488616,1739878240154,-10814.16810808,0.0001,2]
[353488622,1739878240209,-713.24242344,0.0001,2]
[353488633,1739878240317,-4586.97262945,0.0001,2]
[353488643,1739878240426,-278444.14142957,0.0001,2]
[353488645,1739878240437,-1855.07624526,0.0001,2]
[353488760,1739878245978,-1399.39853646,0.0001,2]
[353488761,1739878245989,-628.58692,0.0001,2]
[353488762,1739878246034,-1318.2551,0.0001,2]
[353488763,1739878246048,-615504.37590377,0.0001,2]
[353488764,1739878246089,-8099.45676276,0.0001,2]
[353488765,1739878246147,-1262.5636531,0.0001,2]
[353488766,1739878246158,-1063563.87859115,0.0001,2]
[353488767,1739878246412,-626.59345755,0.0001,2]
[353488786,1739879432281,-185.012,9.8e-05,2]
[353488787,1739879432295,-3115.92,9.8e-05,2]
[353488788,1739879432304,-200.0,9.827e-05,2]
[353488789,1739879432313,-569.29,9.855e-05,2]
[353488790,1739879432323,-150.0,9.945e-05,2]
[353488791,1739879432332,-237.87553364,9.945e-05,2]
[353488792,1739879432343,-300.69812815,9.945e-05,2]
[353488793,1739879432354,-201.06600061,9.945e-05,2]
[353488794,1739879432364,-196.9868644,9.972e-05,2]
[353488795,1739879432375,-103.0131356,9.972e-05,2]
[353488796,1739879432384,-501.10908733,9.973e-05,2]
[353488797,1739879432393,-155.68387499,9.973e-05,2]
[353488798,1739879432402,-500.95720882,9.973e-05,2]
[353488799,1739879432411,-500.0,9.973e-05,2]
[353488800,1739879432421,-362.8149029,9.973e-05,2]
[353488801,1739879432431,-500.91216785,9.973e-05,2]
[353488802,1739879432440,-156.95128824,9.973e-05,2]
[353488803,1739879432449,-150.0,9.999e-05,2]
[353488804,1739879432459,-303.98273757,9.999e-05,2]
[353488805,1739879432468,-7052.26117246,0.0001,2]
[353488806,1739879432479,-9155.98326393,0.0001,2]
[353488807,1739879432490,-17933.22678537,0.0001,2]
[353488808,1739879432508,-1517.7796849,0.0001,2]
[353488809,1739879432519,-7682.42235245,0.0001,2]
[353488810,1739879432532,-500.0,0.0001,2]
[353488811,1739879432543,-500.0,0.0001,2]
[353488812,1739879432554,-1434.30223989,0.0001,2]
[353488813,1739879432566,-1773.5866177,0.0001,2]
[353488814,1739879432575,-477.47593453,0.0001,2]
[353488815,1739879432585,-38629.97010818,0.0001,2]
[353488816,1739879432613,-190538.33908657,0.0001,2]
[353488834,1739879438121,-1095.435283,0.0001,2]
[353488835,1739879438228,-1498.35483899,0.0001,2]
[353488895,1739879443197,-2561.44856116,0.0001,2]
[353488907,1739879443484,-711.58483449,0.0001,2]
[353488909,1739879443495,-902.18031963,0.0001,2]
[353488911,1739879443506,-910.60459204,0.0001,2]
[353488914,1739879443523,-8314.2,0.0001,2]
[353488915,1739879443535,-1049.68000014,0.0001,2]
[353488916,1739879443546,-541.52,0.0001,2]
[353488924,1739879446259,-5410.00000002,0.0001,2]
[353488925,1739879446313,-502.00732029,0.0001,2]
[353488926,1739879446325,-289.53599584,0.0001,2]
[353489106,1739880085828,1002.2091436,0.0002,120]
[353489107,1739880086394,2159.57345043,0.00020161,120]
[353489109,1739880271594,2303.0,0.00020161,120]
[353489119,1739880631404,-1342.48720645,9.8e-05,2]
[353489120,1739880631515,-291.688,9.8e-05,2]
[353489121,1739880631673,-858.56079355,9.8e-05,2]
[353489122,1739880631683,-185.012,9.8e-05,2]
[353489123,1739880631692,-196.27547794,9.8e-05,2]
[353489124,1739880631702,-199.6969,9.9e-05,2]
[353489125,1739880631712,-2958.6151,9.9e-05,2]
[353489126,1739880631721,-1853.3656,9.9e-05,2]
[353489127,1739880631731,-2091.17979029,9.9e-05,2]
[353489144,1739880637397,-1872.89540971,9.9e-05,2]
[353489145,1739880637406,-500.48847851,9.973e-05,2]
[353489146,1739880637416,-500.0,9.999e-05,2]
[353489147,1739880637426,-500.0,9.999e-05,2]
[353489148,1739880637435,-500.0,9.999e-05,2]
[353489149,1739880637445,-500.0,9.999e-05,2]
[353489150,1739880637455,-497.5,9.999e-05,2]
[353489151,1739880637465,-407.05430021,0.0001,2]
[353489152,1739880637476,-8595.71340036,0.0001,2]
[353489153,1739880637488,-1202.55802759,0.0001,2]
[353489154,1739880637499,-490.0000224,0.0001,2]
[353489155,1739880637511,-2076.34305428,0.0001,2]
[353489156,1739880637522,-23572.34410261,0.0001,2]
[353489157,1739880637535,-13980.23118418,0.0001,2]
[353489158,1739880637546,-1053.13715554,0.0001,2]
[353489159,1739880637557,-1003.80426971,0.0001,2]
[353489160,1739880637569,-1248.82727493,0.0001,2]
[353489161,1739880637584,-740.34726879,0.0001,2]
[353489191,1739880639535,-801.53436685,0.0001,2]
[353489192,1739880639588,-2722.48558118,0.0001,2]
[353489193,1739880639599,-449.44567883,0.0001,2]
[353489194,1739880639641,-202234.1094848,0.0001,2]
[353489195,1739880639707,-5441.17137339,0.0001,2]
[353489196,1739880639719,-414.54,0.0001,2]
[353489197,1739880639730,-576.99,0.0001,2]
[353489198,1739880639742,-7153.73604969,0.0001,2]
[353489199,1739880639753,-270.54,0.0001,2]
[353489200,1739880639795,427.73,8.767e-05,2]
[353489201,1739880639855,-1092.27862809,0.0001,2]
[353489374,1739880642517,-509.9685,0.0001,2]
[353489412,1739880643113,-1375430.55345053,0.0001,2]
[353489414,1739880643122,-310.17617902,0.0001,2]
[353489416,1739880643131,-15882.81,0.0001,2]
[353489417,1739880643141,-200.0,0.0001,2]
[353489419,1739880643150,-550.0,0.0001,2]
[353489421,1739880643159,-73663.29579388,0.0001,2]
[353489423,1739880643168,-4000.0,0.0001,2]
[353489425,1739880643177,-540.82,0.00010054,2]
[353489427,1739880643186,-200.0,0.000101,2]
[353489428,1739880643195,-150.0,0.0001078,2]
[353489430,1739880643204,-200.0,0.0001078,2]
[353489432,1739880643213,-200.0,0.0001089,2]
[353489434,1739880643222,-200.0,0.00011,2]
[353489436,1739880643231,-1448.0,0.00011516,2]
[353489437,1739880643241,-2000.0,0.00011612,2]
[353489439,1739880643250,-209.23,0.00011616,2]
[353489441,1739880643259,-999.37,0.00011616,2]
[353489443,1739880643269,-376.4,0.00011616,2]
[353489445,1739880643278,-889.86,0.00011734,2]
[353489447,1739880643287,-545.3,0.00011751,2]
[353489449,1739880643295,-250.0,0.00011787,2]
[353489450,1739880643304,-3731.87,0.00011799,2]
[353489452,1739880643313,-213.86,0.00011806,2]
[353489454,1739880643324,-1000.0,0.00011888,2]
[353489456,1739880643333,-200.86,0.00011999,2]
[353489458,1739880643343,-162.1,0.00012198,2]
[353489459,1739880643352,-23900.0,0.00012269,2]
[353489461,1739880643361,-540.82,0.00012318,2]
[353489463,1739880643370,-160.0,0.00012405,2]
[353489465,1739880643379,-213.86,0.00013282,2]
[353489467,1739880643388,-1000.0,0.00013374,2]
[353489468,1739880643397,-83249.9323622,0.00013377,4]
[353489470,1739880643407,-500.0,0.00013379,2]
[353489472,1739880643417,-1219064.45206232,0.0001338,3]
[353489474,1739880643427,-200.86,0.00013499,2]
[353489476,1739880643436,-500.0,0.00013516,2]